Cogmind - Beta 11 @@@ ROGUE MODE // 2022.04.17 @ 19:46:30 Player: Infomantis Result: Destroyed by Lightning with EMDS Performance ------------- Evolutions (4) 2000 Regions Visited (15) 3000 Robots Destroyed (108) 540 Value Destroyed (5139) 5139 Prototype IDs (15) 300 Alien Tech Used (0) 0 Bonus (5471) 5471 TOTAL SCORE: 16450 Bonus ------- High Alert Combat Kills 1333 Follower Combat Kills 2485 Entered Garrisons 400 Used RIF Installer 1000 Network Hubs Disabled 200 A7 Reached Mainframe 300 Met R17 at Cetus 500 Friendly Fire -747 Cogmind --------- Core Integrity 0/850 Matter 295/300 Energy 98/100 System Corruption 37% Temperature Cool (0) Movement Core (50) Location -6/Hub_04(d) Parts ------- > --- POWER (1) -------- (None) > --- PROPULSION (4) --- (None) > --- UTILITY (8) ------ Machine Analyzer Improved Targeting Computer > --- WEAPON (2) ------- (None) > --- INVENTORY (5) ---- Fission Core Large Storage Unit Relay Coupler [NC] (25) Remote Datajack Powered Hammer Peak State ------------ > --- POWER ------------ Quantum Reactor > --- PROPULSION ------- Centrium Heavy Treads Centrium Heavy Treads > --- UTILITY ---------- Advanced Heat Sink Large Storage Unit Machine Analyzer Improved Targeting Computer Centrium Medium Armor Plating Centrium Medium Armor Plating Centrium Medium Armor Plating Centrium Medium Armor Plating > --- WEAPON ----------- Advanced Variable Charge Gun Magnetic Acceleration Cannon > --- INVENTORY -------- Fission Core Relay Coupler [NC] Improved System Restoration Module Bore Cannon Grenade Launcher Advanced Datajack Remote Datajack Powered Hammer [Rating: 108] Favorites ----------- Power Quantum Reactor Engine Improved Ion Engine Power Core Light Nuclear Core Reactor Quantum Reactor Propulsion Light Treads Treads Light Treads Leg Aluminum Leg Wheel Wheel Utility Small Storage Unit Device Advanced Heat Sink Storage Small Storage Unit Processor Machine Analyzer Hackware Relay Coupler [NC] Protection Improved Light Armor Plating Weapon Cooled Plasma Cannon Energy Gun Improved Heavy Laser Energy Cannon Cooled Plasma Cannon Ballistic Gun Heavy Assault Rifle Ballistic Cannon Bore Cannon Launcher Grenade Launcher Special Weapon Remote Datajack Special Melee Weapon Advanced Datajack Build | -11 -10 -10 -9 -9 -9 -9 -7 -7 -6 -6 -6 -6 -6 -6 -6 ------- Run | Scr Mat Min Mat Sto Gar Rec Fac Gar Fac Was Fac Ext Cet Arc Hub Slots Evolved 8 | . . . 2 . . . 4 . 2 . . . . . . Power . | . . . . . . . . . . . . . . . . Propulsion 2 | . . . 1 . . . 1 . . . . . . . . Utility 6 | . . . 1 . . . 3 . 2 . . . . . . Weapon . | . . . . . . . . . . . . . . . . Parts Attached 158 | 7 . 6 17 14 11 . 3 29 4 10 12 21 11 4 9 Power 14 | 1 . 1 2 1 . . 1 3 . 1 1 2 1 . . Engine 7 | 1 . 1 1 1 . . . 1 . 1 1 . . . . Core 4 | . . . 1 . . . 1 2 . . . . . . . Reactor 3 | . . . . . . . . . . . . 2 1 . . Propulsion 42 | 2 . 2 9 3 5 . 2 7 1 2 . 5 2 . 2 Treads 21 | . . . . 1 4 . 1 5 . 2 . 4 2 . 2 Leg 19 | 2 . 2 9 2 1 . 1 2 . . . . . . . Wheel 2 | . . . . . . . . . 1 . . 1 . . . Hover . | . . . . . . . . . . . . . . . . Flight . | . . . . . . . . . . . . . . . . Utility 53 | 2 . 3 3 3 1 . . 11 2 4 3 8 6 3 4 Device 19 | 1 . 3 1 2 . . . 5 . 2 . 2 1 1 1 Storage 3 | 1 . . . . . . . . . . 2 . . . . Processor 2 | . . . . . . . . . . . 1 1 . . . Hackware 5 | . . . . . . . . 2 . . . 2 . 1 . Protection 24 | . . . 2 1 1 . . 4 2 2 . 3 5 1 3 Artifact . | . . . . . . . . . . . . . . . . Weapon 49 | 2 . . 3 7 5 . . 8 1 3 8 6 2 1 3 Energy Gun 5 | . . . 1 1 1 . . . . . . . 1 . 1 Energy Cannon 15 | . . . 2 2 1 . . 3 . . 3 2 1 . 1 Ballistic Gun 11 | 2 . . . 3 1 . . 2 1 1 1 . . . . Ballistic Cannon 6 | . . . . . . . . . . 2 1 2 . . 1 Launcher 5 | . . . . 1 1 . . 2 . . . 1 . . . Special Weapon 4 | . . . . . . . . . . . 3 1 . . . Impact Weapon . | . . . . . . . . . . . . . . . . Slashing Weapon . | . . . . . . . . . . . . . . . . Piercing Weapon . | . . . . . . . . . . . . . . . . Special Melee Weapon 3 | . . . . . 1 . . 1 . . . . . 1 . Unidentified Prototypes 11 | . . 1 2 2 . . . . . 2 1 . 3 . . Parts Lost 35 | . . . 3 2 . . 3 4 . . . 6 . . 17 Power 5 | . . . . 1 . . 2 . . . . 1 . . 1 Propulsion 11 | . . . 1 1 . . . 2 . . . 3 . . 4 Utility 12 | . . . 2 . . . . . . . . 2 . . 8 Weapon 7 | . . . . . . . 1 2 . . . . . . 4 Highest Loss Streak 11 | . . . 2 2 . . 2 2 . . . 3 . . 11 To Critical Strikes . | . . . . . . . . . . . . . . . . Average Slot Usage (%) 87 | . 100 100 97 91 99 100 67 97 99 71 65 84 88 85 77 Engine 5 | . 14 14 9 10 11 11 4 2 . 4 6 4 . . . Reactor 1 | . . . . . . . . . . . . 1 6 6 5 Treads 13 | . . . . 5 19 33 24 23 20 14 13 15 14 13 11 Leg 7 | . 28 28 31 25 13 . . 6 5 . . . . . . Device 9 | . 14 14 10 15 13 11 7 15 13 7 6 5 6 6 5 Storage 8 | . 14 14 11 11 11 11 7 7 6 6 5 6 6 6 5 Processor 4 | . . . . . . . . . . . 4 9 13 13 13 Hackware 6 | . . . . . . . . 10 13 13 8 10 13 13 7 Protection 8 | . . . 11 . 8 11 7 10 20 7 6 9 13 12 14 Energy Cannon 7 | . . . 7 4 7 11 7 5 6 6 5 9 12 12 3 Ballistic Gun 6 | . 28 28 14 11 10 11 4 6 5 1 . . . . . Ballistic Cannon 1 | . . . . . . . . . . 4 5 2 . . 2 Naked Turns . | . . . . . . . . . . . . . . . . Heaviest Build 96 | 12 12 12 19 27 27 27 27 31 33 78 96 96 73 73 82 Greatest Support 160 | 20 20 20 39 39 60 60 80 60 40 140 140 140 160 160 160 Greatest Overweight (x) 23 | . . . . 1 1 . . 2 3 3 . 5 . 23 . Average Overweight (x) . | . . . . . . . . . . . . 2 . 12 . Largest Inventory Capacity 15 | 8 8 8 8 8 8 8 8 8 8 8 15 15 15 15 15 Average Capacity 10 | 7 8 8 8 8 8 8 8 8 8 8 9 15 15 15 14 Most Carried 15 | 8 8 8 8 8 8 8 8 8 8 8 15 15 15 15 15 Average Carried 10 | 5 8 7 7 7 7 8 7 7 7 7 8 14 14 14 11 Final Capacity 15 | 8 8 8 8 8 8 8 8 8 8 8 15 15 15 15 5 Final Carried 15 | 8 8 8 8 8 8 8 8 8 8 8 15 15 15 15 5 Class Distribution -------------------- 70% | Scavenger-Mutant 20% | Mutant 8% | Commander-Mutant Dominant Class ---------------- Mutant | -10/Materials Mutant | -10/Mines Mutant | -9/Materials Mutant | -9/Storage Scavenger-Mutant | -9/Garrison Commander-Mutant | -9/Recycling Commander-Mutant | -7/Factory Scavenger-Mutant | -7/Garrison Scavenger-Mutant | -6/Factory Scavenger-Mutant | -6/Waste Scavenger-Mutant | -6/Factory Scavenger-Mutant | -6/Extension Scavenger-Mutant | -6/Cetus Scavenger-Mutant | -6/Archives Scavenger-Mutant | -6/Hub_04(d) Resources | -11 -10 -10 -9 -9 -9 -9 -7 -7 -6 -6 -6 -6 -6 -6 -6 ----------- Run | Scr Mat Min Mat Sto Gar Rec Fac Gar Fac Was Fac Ext Cet Arc Hub Matter Collected 2693 | 282 . 124 228 209 204 15 20 386 69 190 147 498 110 30 181 Remotely . | . . . . . . . . . . . . . . . . Salvage Created 4740 | 77 . 103 480 621 419 . 92 550 69 . 32 794 603 399 501 Parts 256 | 10 . 7 35 34 30 . 1 31 4 . 3 36 26 23 16 Haulers Intercepted 2 | . . . 2 . . . . . . . . . . . . Recyclers Shooed 4 | 1 . . 1 1 . . . . . . . 1 . . . Parts Field Recycled . | . . . . . . . . . . . . . . . . Retrieved Matter . | . . . . . . . . . . . . . . . . Parts Self-Destructed . | . . . . . . . . . . . . . . . . Prevented . | . . . . . . . . . . . . . . . . Kills | -11 -10 -10 -9 -9 -9 -9 -7 -7 -6 -6 -6 -6 -6 -6 -6 ------- Run | Scr Mat Min Mat Sto Gar Rec Fac Gar Fac Was Fac Ext Cet Arc Hub Combat Hostiles Destroyed 92 | . . 2 9 14 11 . 2 15 1 . . 14 9 4 11 Melee 1 | . . . . . . . . . . . . . . . 1 Guns 20 | . . 2 2 8 1 . . 4 . . . . . . 3 Cannons 54 | . . . 6 4 7 . 2 6 1 . . 12 7 3 6 AOE 9 | . . . . 2 2 . . 3 . . . 2 . . . Classes Destroyed 13 | 1 . 1 3 2 . . 1 1 . . . 3 1 . . Tunneler 6 | 4 . 1 . . . . . . 1 . . . . . . Hauler 2 | . . . 2 . . . . . . . . . . . . Recycler 1 | . . . . 1 . . . . . . . . . . . Operator 3 | . . . . . . . . . . . . 1 . 2 . Drone 1 | . . . . 1 . . . . . . . . . . . Watcher 1 | . . . . . . . . . . . . . 1 . . Swarmer 16 | . . . 1 4 3 . . 4 . . . . 1 . 3 Grunt 42 | . . 2 6 6 3 . . 6 . . . 9 4 . 6 Duelist 1 | . . . . . . . . . . . . 1 . . . Protector 1 | . . . . . . . . . . . . 1 . . . Sentry 23 | . . . 2 5 5 . . 3 . . . 2 . 4 2 Hunter 2 | . . . . . . . 2 . . . . . . . . Programmer 3 | . . . . . . . . 2 1 . . . . . . Cetus Guard 4 | . . . . . . . . . . . . . 4 . . Wasp 1 | . . . . . . . . . . . 1 . . . . Thug 1 | . . . . . . . . . . . . 1 . . . Guerrilla 1 | . . . . . . . . . . . . 1 . . . Best Kill Streak 8 | 3 . 2 5 4 5 . 2 8 1 . . 6 7 3 3 Combat Bots Only 8 | . . 2 5 4 5 . 2 8 1 . . 6 7 2 3 Max Kills in Single Turn 4 | 1 . 1 1 4 2 . 1 1 1 . 1 2 1 1 1 Gunslinging . | . . . . . . . . . . . . . . . . Exploded 2 | . . . . 2 2 . . 1 . . . 1 . . . Melee 1 | . . . . . . . . . . . . . . . 1 Uniques/NPCs Destroyed . | . . . . . . . . . . . . . . . . Combat | -11 -10 -10 -9 -9 -9 -9 -7 -7 -6 -6 -6 -6 -6 -6 -6 -------- Run | Scr Mat Min Mat Sto Gar Rec Fac Gar Fac Was Fac Ext Cet Arc Hub Damage Taken 11787 | . . 175 965 630 320 18 520 1237 72 . 231 1783 543 268 5025 Core 1455 | . . 45 192 65 60 12 60 144 28 . 11 240 94 29 475 Absorbed by Shields 246 | . . . . . . . . . . . . 87 159 . . Regen/Repaired (Parts) 180 | . . . . 37 . . . . . . 143 . . . . Core Remaining (%) 67 | 100 . 82 . . . 17 . 70 . . . . . . . Volleys Fired 324 | 11 . 11 36 23 30 2 8 40 8 . 10 67 32 14 32 Largest 2 | 2 . 2 2 2 2 1 1 2 2 . 2 2 2 2 2 Hottest 195 | 40 . 40 88 91 88 35 35 133 133 . 92 125 195 125 143 Shots Fired 577 | 22 . 22 71 45 50 3 8 69 9 . 15 110 64 29 60 Gun 197 | 22 . 22 40 30 30 . . 37 1 . . . . . 15 Cannon 357 | . . . 31 14 19 3 8 28 8 . 10 98 64 29 45 Launcher 11 | . . . . 1 1 . . 4 . . . 5 . . . Special 12 | . . . . . . . . . . . 5 7 . . . Kinetic 223 | 22 . 22 40 22 22 . . 37 1 . 5 32 . . 20 Thermal 331 | . . . 31 22 27 3 8 28 8 . 5 66 64 29 40 Explosive 11 | . . . . 1 1 . . 4 . . . 5 . . . Electromagnetic . | . . . . . . . . . . . . . . . . Robot Hit Streak 15 | 8 . 4 5 12 10 7 5 10 3 . 5 7 11 12 15 Robot Miss Streak 15 | 2 . 7 3 2 3 1 4 15 5 . 3 6 2 3 5 Penetration Max . | . . . . . . . . . . . . . . . . Secondary Targets 3 | . . 1 . 1 1 . . . . . . . . . . Max Gunslinging Chain 1 | . . 1 . 1 1 . . . . . . . . . . Shots Hit Robots 360 | 16 . 10 38 32 40 2 5 52 5 . 7 52 45 21 35 Core Hits 195 | 7 . 7 15 22 11 . 2 44 2 . 2 33 22 12 16 Critical Kills 10 | . . . 1 . 1 . . 1 . . . 3 2 1 1 Critical Parts Destroyed 8 | 1 . . . . . . . . . . . 7 . . . Critical Strikes 19 | 1 . . 1 . 1 . . 1 . . . 10 2 1 2 Meltdown 7 | . . . 1 . 1 . . 1 . . . . 2 1 1 Destroy 11 | 1 . . . . . . . . . . . 10 . . . Blast 1 | . . . . . . . . . . . . . . . 1 Melee Attacks 16 | . . . . . 12 . . 2 . . . . . 2 . Impact . | . . . . . . . . . . . . . . . . Slashing . | . . . . . . . . . . . . . . . . Piercing . | . . . . . . . . . . . . . . . . Sneak Attacks 14 | . . . . . 12 . . . . . . . . 2 . Combat Hostiles . | . . . . . . . . . . . . . . . . Follow-up Attacks . | . . . . . . . . . . . . . . . . Damage Inflicted 10342 | 168 . 96 578 911 907 66 189 1745 235 . 220 1784 1560 680 1203 Guns 1910 | 168 . 96 183 372 265 . . 476 7 . . . . . 343 Cannons 7211 | . . . 389 247 484 66 189 984 228 . 176 1356 1560 677 855 Explosions 1120 | . . . . 292 158 . . 285 . . . 385 . . . Melee . | . . . . . . . . . . . . . . . . Ramming 101 | . . . 6 . . . . . . . 44 43 . 3 5 Kinetic 2007 | 168 . 96 183 218 135 . . 476 7 . 77 334 . . 313 Thermal 7114 | . . . 389 401 614 66 189 984 228 . 99 1022 1560 677 885 Explosive 1120 | . . . . 292 158 . . 285 . . . 385 . . . Electromagnetic . | . . . . . . . . . . . . . . . . Impact . | . . . . . . . . . . . . . . . . Slashing . | . . . . . . . . . . . . . . . . Piercing . | . . . . . . . . . . . . . . . . Highest Corruption 37 | . . . 1 1 1 1 . . . . . 1 1 1 37 Average Corruption 1 | . . . 1 1 1 1 . . . . . 1 1 1 20 Corruption Purged 1 | . . . . . . . . . . . . . . 1 . Corruption Blocked . | . . . . . . . . . . . . . . . . Effects 33 | . . . 5 2 4 7 . . . . . 1 4 2 8 Message Errors 10 | . . . 2 1 1 . . . . . . . 4 . 2 Matter Fused 6 | . . . 1 . 2 2 . . . . . . . . 1 Heat Flow Errors 2 | . . . . 1 . 1 . . . . . . . . . Energy Discharges 4 | . . . . . . 1 . . . . . 1 . 1 1 Data Loss (minor) 4 | . . . . . 1 1 . . . . . . . . 2 Misfires 2 | . . . . . . 1 . . . . . . . 1 . Alerts 2 | . . . 1 . . 1 . . . . . . . . . Misdirections 2 | . . . . . . . . . . . . . . . 2 Weapon Failures 1 | . . . 1 . . . . . . . . . . . . Overload Shots 12 | . . . . . . . . 7 4 . . . 1 . . Effects 1 | . . . . . . . . . 1 . . . . . . Short Circuit 1 | . . . . . . . . . 1 . . . . . . Overflow Damage 201 | . . . . . . 4 . 106 40 . 12 39 . . . Projectiles 201 | . . . . . . 4 . 106 40 . 12 39 . . . Explosions . | . . . . . . . . . . . . . . . . Melee . | . . . . . . . . . . . . . . . . Knockbacks 6 | . . . . . . . . . . . . 2 . . 4 Impact . | . . . . . . . . . . . . . . . . Kinetic 6 | . . . . . . . . . . . . 2 . . 4 Secondary . | . . . . . . . . . . . . . . . . Self-Inflicted Damage 123 | . . . . 103 19 . . . . . . . . 1 . Shots 3 | . . . . 2 1 . . . . . . . . . . Rammed 11 | . . . . . . . . . . . 7 2 . 1 1 Targets Rammed 15 | . . . 3 . . . . . . . 7 2 . 1 2 Kicked 3 | . . . 3 . . . . . . . . . . . . Crushed 1 | . . . . . . . . . . . . . . . 1 Highest Temperature 430 | . . 18 430 68 1 79 . 26 . . 203 197 69 14 138 Average Temperature 70 | . . 12 142 17 1 47 . 12 . . 107 46 10 7 41 Received Heat Transfer 2818 | . . 87 519 126 117 6 78 381 . . . 840 43 18 603 Effects 3 | . . . 3 . . . . . . . . . . . . Energy Bleed 1 | . . . 1 . . . . . . . . . . . . Short Circuit 1 | . . . 1 . . . . . . . . . . . . Damage (minor) 1 | . . . 1 . . . . . . . . . . . . Siege Activations . | . . . . . . . . . . . . . . . . Robots Corrupted . | . . . . . . . . . . . . . . . . Combat Hostiles . | . . . . . . . . . . . . . . . . Parts Fried . | . . . . . . . . . . . . . . . . Impact Corruptions . | . . . . . . . . . . . . . . . . Robots Melted 8 | . . . 1 . 1 . . 2 . . . . 2 1 1 Combat Hostiles 8 | . . . 1 . 1 . . 2 . . . . 2 1 1 Parts Melted 32 | . . 1 3 1 6 . . 2 4 . . 5 5 2 3 Heat Transferred 10743 | . . . 703 666 935 100 300 1285 260 . 150 1550 2450 1050 1294 Parts Sabotaged . | . . . . . . . . . . . . . . . . Parts Stolen . | . . . . . . . . . . . . . . . . Parts Stripped . | . . . . . . . . . . . . . . . . Power Chain Reactions . | . . . . . . . . . . . . . . . . Missiles Intercepted . | . . . . . . . . . . . . . . . . Alert | -11 -10 -10 -9 -9 -9 -9 -7 -7 -6 -6 -6 -6 -6 -6 -6 ------- Run | Scr Mat Min Mat Sto Gar Rec Fac Gar Fac Was Fac Ext Cet Arc Hub Peak Influence 1305 | 20 80 134 400 732 998 570 941 1031 595 208 1305 1164 925 487 327 Initial 925 | . 13 31 1 98 475 448 925 588 541 208 5 639 567 290 . Average 441 | 7 40 36 173 266 785 338 898 896 566 166 572 963 740 216 167 Maximum Alert Level 4 | . . . 2 3 3 2 3 3 2 1 4 4 3 2 1 Low Security (%) 31 | 100 100 100 42 26 . 27 . . . 20 7 . . 52 58 Level 1 24 | . . . 55 62 . 15 . . . 79 51 . . 27 41 Level 2 16 | . . . 1 10 28 56 . 26 100 . 7 6 58 20 . Level 3 23 | . . . . 1 71 . 100 73 . . 13 79 41 . . Level 4 3 | . . . . . . . . . . . 20 14 . . . Level 5 . | . . . . . . . . . . . . . . . . High Security . | . . . . . . . . . . . . . . . . Max Security . | . . . . . . . . . . . . . . . . Squads Dispatched 27 | . 2 . 2 4 . . 2 . . . 4 6 . . 7 Investigation 8 | . 2 . 2 1 . . 1 . . . . . . . 2 Extermination 1 | . . . . . . . . . . . 1 . . . . Reinforcement 9 | . . . . 2 . . . . . . 1 4 . . 2 Assault 3 | . . . . . . . . . . . 1 2 . . . Garrison 6 | . . . . 1 . . 1 . . . 1 . . . 3 Intercept . | . . . . . . . . . . . . . . . . Searches Triggered . | . . . . . . . . . . . . . . . . Construction Impeded . | . . . . . . . . . . . . . . . . Haulers Reinforced . | . . . . . . . . . . . . . . . . Active Scanning Responses . | . . . . . . . . . . . . . . . . Cargo Convoy Interrupts . | . . . . . . . . . . . . . . . . Stealth | -11 -10 -10 -9 -9 -9 -9 -7 -7 -6 -6 -6 -6 -6 -6 -6 --------- Run | Scr Mat Min Mat Sto Gar Rec Fac Gar Fac Was Fac Ext Cet Arc Hub Distress Signals 16 | . 1 . 1 4 1 . . . . . 3 3 2 . 1 Communications Jammed 67 | . . . . . . . . . . . 28 39 . . . Distress Signals 67 | . . . . . . . . . . . 28 39 . . . Times Spotted 241 | . 4 4 25 24 20 14 5 20 1 . 20 42 18 13 31 Peak Tracking Total 14 | . 5 2 6 7 5 3 3 7 1 . 6 9 6 1 14 Tactical Retreats 6 | . . . 1 3 . . . 1 . . . . . . 1 Traps | -11 -10 -10 -9 -9 -9 -9 -7 -7 -6 -6 -6 -6 -6 -6 -6 ------- Run | Scr Mat Min Mat Sto Gar Rec Fac Gar Fac Was Fac Ext Cet Arc Hub Traps Triggered 9 | . . . 2 2 1 . 1 . 1 . . 2 . . . Indirectly . | . . . . . . . . . . . . . . . . Trap Hack Attempts . | . . . . . . . . . . . . . . . . Triggered . | . . . . . . . . . . . . . . . . Disarmed . | . . . . . . . . . . . . . . . . Reprogrammed . | . . . . . . . . . . . . . . . . Reused . | . . . . . . . . . . . . . . . . Traps Extracted . | . . . . . . . . . . . . . . . . Installed . | . . . . . . . . . . . . . . . . Triggered . | . . . . . . . . . . . . . . . . Machines | -11 -10 -10 -9 -9 -9 -9 -7 -7 -6 -6 -6 -6 -6 -6 -6 ---------- Run | Scr Mat Min Mat Sto Gar Rec Fac Gar Fac Was Fac Ext Cet Arc Hub Machines Disabled 27 | . . 1 1 3 1 1 . 1 . . 12 3 1 3 . Max in Single Turn 2 | . . . 1 2 1 1 . 1 . . . 1 1 1 . Garrison Access 1 | . . . . . . . . . . . 1 . . . . Garrison Relay 2 | . . . . . 1 . . 1 . . . . . . . Network Hub 1 | . . . . . . . . . . . . . . . 1 Machines Sabotaged 1 | . . . . . . . . . . . . . . . 1 Garrisons Compromised . | . . . . . . . . . . . . . . . . Overloaded Fab Kills . | . . . . . . . . . . . . . . . . Hacking | -11 -10 -10 -9 -9 -9 -9 -7 -7 -6 -6 -6 -6 -6 -6 -6 --------- Run | Scr Mat Min Mat Sto Gar Rec Fac Gar Fac Was Fac Ext Cet Arc Hub Machines Accessed 47 | . 4 1 4 8 . 6 2 . . . 8 10 1 . 3 Terminals 35 | . 2 . 4 6 . 4 1 . . . 5 10 1 . 2 Fabricators 1 | . . . . . . . . . . . 1 . . . . Repair Stations 2 | . . . . 1 . . . . . . 1 . . . . Recycling Units 4 | . 2 . . . . 2 . . . . . . . . . Scanalyzers . | . . . . . . . . . . . . . . . . Garrison Access 4 | . . . . 1 . . 1 . . . 1 . . . 1 Total Hacks 105 | . 5 1 8 21 . 18 4 . . . 19 20 2 . 7 Successful 53 | . 5 1 3 8 . 13 2 . . . 8 11 . . 2 Failed 52 | . . . 5 13 . 5 2 . . . 11 9 2 . 5 Catastrophic 11 | . . . 2 2 . 2 . . . . 2 3 . . . Database Lockouts . | . . . . . . . . . . . . . . . . Manual 44 | . 3 . 5 8 . 7 2 . . . 8 4 . . 7 Terminals 88 | . 2 . 8 18 . 15 3 . . . 15 20 2 . 5 Fabricators 1 | . . . . . . . . . . . 1 . . . . Repair Stations 4 | . . . . 2 . . . . . . 2 . . . . Recycling Units 6 | . 3 . . . . 3 . . . . . . . . . Scanalyzers . | . . . . . . . . . . . . . . . . Garrison Access 5 | . . . . 1 . . 1 . . . 1 . . . 2 Terminal Hacks 31 | . 2 1 3 3 . 8 1 . . . 4 9 . . . Part Schematic 3 | . . . . . . 3 . . . . . . . . . Robot Analysis 2 | . . . 1 . . . . . . . 1 . . . . Prototype ID Bank 2 | . . . . . . 1 . . . . . 1 . . . Open Door 9 | . . 1 . 2 . . . . . . . 6 . . . Branch Access Points 3 | . 1 . . . . . 1 . . . 1 . . . . Unreport Threat 3 | . . . . . . 3 . . . . . . . . . Locate Traps 2 | . . . 1 . . . . . . . 1 . . . . Dispatch Records 1 | . . . . . . . . . . . . 1 . . . Maintenance Status 2 | . 1 . . . . . . . . . 1 . . . . Recall Investigation 1 | . . . . 1 . . . . . . . . . . . Hauler Manifests 1 | . . . 1 . . . . . . . . . . . . Zone Layout 2 | . . . . . . 1 . . . . . 1 . . . Fabricator Hacks . | . . . . . . . . . . . . . . . . Repair Station Hacks 4 | . . . . 2 . . . . . . 2 . . . . Scan Component 2 | . . . . 1 . . . . . . 1 . . . . Repair 2 | . . . . 1 . . . . . . 1 . . . . Recycling Unit Hacks . | . . . . . . . . . . . . . . . . Scanalyzer . | . . . . . . . . . . . . . . . . Garrison Access Hacks 3 | . . . . 1 . . 1 . . . 1 . . . . Unlock Access 2 | . . . . 1 . . 1 . . . . . . . . Seal Access 1 | . . . . . . . . . . . 1 . . . . Unauthorized Hacks 15 | . 3 . . 2 . 5 . . . . 1 2 . . 2 Terminals 8 | . . . . 2 . 2 . . . . 1 2 . . 1 Botnet 7 | . . . . 2 . 2 . . . . 1 2 . . . Sabotage 1 | . . . . . . . . . . . . . . . 1 Fabricators . | . . . . . . . . . . . . . . . . Repair Stations . | . . . . . . . . . . . . . . . . Recycling Units 6 | . 3 . . . . 3 . . . . . . . . . Recyclers 2 | . 1 . . . . 1 . . . . . . . . . Tunnel 4 | . 2 . . . . 2 . . . . . . . . . Scanalyzers . | . . . . . . . . . . . . . . . . Garrison Access 1 | . . . . . . . . . . . . . . . 1 Reprogram 1 | . . . . . . . . . . . . . . . 1 Data Cores Recovered 1 | . . . 1 . . . . . . . . . . . . Used 1 | . . . 1 . . . . . . . . . . . . Hacking Detections 33 | . . . 4 7 . 4 2 . . . 6 7 1 . 2 Full Trace Events 4 | . . . 2 . . 2 . . . . . . . . . Feedback Events 1 | . . . 1 . . . . . . . . . . . . Corruption 1 | . . . 1 . . . . . . . . . . . . Feedback Blocked . | . . . . . . . . . . . . . . . . Robot Schematics Acquired . | . . . . . . . . . . . . . . . . Robots Built . | . . . . . . . . . . . . . . . . Authchips . | . . . . . . . . . . . . . . . . Time . | . . . . . . . . . . . . . . . . Total Robot Build Rating . | . . . . . . . . . . . . . . . . Part Schematics Acquired 3 | . . . . . . 3 . . . . . . . . . Parts Built . | . . . . . . . . . . . . . . . . Authchips . | . . . . . . . . . . . . . . . . Time . | . . . . . . . . . . . . . . . . Total Part Build Rating . | . . . . . . . . . . . . . . . . Parts Repaired 2 | . . . . 1 . . . . . . 1 . . . . Time 45 | . . . . 19 . . . . . . 26 . . . . Parts Recycled . | . . . . . . . . . . . . . . . . Recycled Matter . | . . . . . . . . . . . . . . . . Retrieved Matter . | . . . . . . . . . . . . . . . . Retrieved Components . | . . . . . . . . . . . . . . . . Parts Scanalyzed . | . . . . . . . . . . . . . . . . Part Schematics Acquired . | . . . . . . . . . . . . . . . . Parts Damaged . | . . . . . . . . . . . . . . . . Bothacking | -11 -10 -10 -9 -9 -9 -9 -7 -7 -6 -6 -6 -6 -6 -6 -6 ------------ Run | Scr Mat Min Mat Sto Gar Rec Fac Gar Fac Was Fac Ext Cet Arc Hub Used RIF Installer 2 | . . . . . 1 . . 1 . . . . . . . Signal Jammer 1 | . . . . . . . . 1 . . . . . . . Robots Hacked 5 | . . . . . . . . 1 . . 3 . . 1 . Non-combat 4 | . . . . . . . . . . . 3 . . 1 . Combat 1 | . . . . . . . . 1 . . . . . . . Robot Hacks Applied 5 | . . . . . . . . 1 . . 3 . . 1 . parse_system 1 | . . . . . . . . . . . 1 . . . . map_walls 1 | . . . . . . . . . . . 1 . . . . formatsys_low 2 | . . . . . . . . . . . 1 . . 1 . formatsys_high 1 | . . . . . . . . 1 . . . . . . . Relay Couplers Released 6 | . . . . . 3 . . 3 . . . . . . . Machine Destruction 6 | . . . . . 3 . . 3 . . . . . . . Attached 2 | . . . . . . . . 2 . . . . . . . Fabnet Peak Effective % . | . . . . . . . . . . . . . . . . Robots Rewired 18 | . . . . . 4 8 . . . . . 6 . . . Allies Hacked . | . . . . . . . . . . . . . . . . Hacks Repelled . | . . . . . . . . . . . . . . . . Allies | -11 -10 -10 -9 -9 -9 -9 -7 -7 -6 -6 -6 -6 -6 -6 -6 -------- Run | Scr Mat Min Mat Sto Gar Rec Fac Gar Fac Was Fac Ext Cet Arc Hub Total Allies 65 | . . 3 . 10 4 8 . 1 . 20 1 15 . 1 2 Largest Group 20 | . . 3 3 10 6 11 7 1 . 20 20 9 2 1 3 Highest-Rated Group 760 | . . 40 40 88 56 102 55 21 . 760 760 299 179 153 103 Highest-Rated Ally 159 | . . 16 16 16 16 15 10 21 . 50 50 159 159 153 45 Total Orders 7 | . . . . 4 2 . . . . . . . . . 1 STAY 1 | . . . . . . . . . . . . . . . 1 EXPLORE 5 | . . . . 4 1 . . . . . . . . . . RETURN 1 | . . . . . 1 . . . . . . . . . . Ally Attacks 623 | . . 17 49 67 49 113 13 9 . . 150 114 30 . 12 Total Damage 11472 | . . 197 463 584 428 513 64 233 . . 5138 2903 759 . 190 Kills 109 | . . 2 9 8 8 17 . 2 . . 37 18 7 . 1 Allies Corrupted 1 | . . . . . . . . . . . . 1 . . . Allies Melted . | . . . . . . . . . . . . . . . . Intel | -11 -10 -10 -9 -9 -9 -9 -7 -7 -6 -6 -6 -6 -6 -6 -6 ------- Run | Scr Mat Min Mat Sto Gar Rec Fac Gar Fac Was Fac Ext Cet Arc Hub Robot Analysis Total 2 | . . . 1 . . . . . . . 1 . . . . Derelict Logs Recovered 2 | . . 2 . . . . . . . . . . . . . Drone Launches 12 | . . . . 11 1 . . . . . . . . . . Drone Recoveries 6 | . . . . 5 1 . . . . . . . . . . Exploration | -11 -10 -10 -9 -9 -9 -9 -7 -7 -6 -6 -6 -6 -6 -6 -6 ------------- Run | Scr Mat Min Mat Sto Gar Rec Fac Gar Fac Was Fac Ext Cet Arc Hub Turns Passed 10067 | 136 157 918 507 751 617 709 267 681 119 505 1103 1052 409 1675 461 Spaces Moved 4661 | 75 131 711 300 366 297 278 148 305 56 289 620 431 181 216 257 Core 184 | 4 . . . . . . . . . . . . . 119 61 Treads 2497 | . . . . . 184 278 148 223 45 284 620 241 181 97 196 Legs 1774 | 71 131 711 300 366 113 . . 82 . . . . . . . Wheels 206 | . . . . . . . . . 11 5 . 190 . . . Hover . | . . . . . . . . . . . . . . . . Flight . | . . . . . . . . . . . . . . . . Fastest Speed 50 | 50 120 120 120 120 120 160 160 160 125 125 160 155 160 160 50 Average Speed 172 | 116 120 120 120 139 153 160 160 168 153 159 160 159 160 732 133 Slowest Speed 1200 | 120 120 120 120 190 240 160 160 260 160 160 160 240 160 1200 160 Overloaded Moves . | . . . . . . . . . . . . . . . . Propulsion Burnouts . | . . . . . . . . . . . . . . . . Robots Hopped . | . . . . . . . . . . . . . . . . Cave-ins Triggered . | . . . . . . . . . . . . . . . . Exploration Rate (%) 46 | 4 34 99 29 68 41 65 5 54 1 97 26 60 66 69 25 Regions Visited 15 Branch Regions 7 Pre-discovered Areas 4 | . 2 . . . . 2 . . . . . . . . . Known Exits Taken 5 | . 1 . 1 1 . . 1 . . . 1 . . . . Unknown Exits Taken 6 | 1 . 1 . . . 1 . . . . . 1 1 1 . Scrap Searched 1 | . . 1 . . . . . . . . . . . . . Spaces Dug 21 | . . . . 11 . . . . . . . 10 . . . Terrain Destroyed 144 | . . . . 31 2 . 2 6 4 . 2 68 9 2 18 Melee . | . . . . . . . . . . . . . . . . Projectile 79 | . . . . 1 . . 2 . 4 . 2 41 9 2 18 AOE 65 | . . . . 30 2 . . 6 . . . 27 . . . Terrain Rammed . | . . . . . . . . . . . . . . . . Walls Destroyed . | . . . . . . . . . . . . . . . . Machines Disabled . | . . . . . . . . . . . . . . . . Actions | -11 -10 -10 -9 -9 -9 -9 -7 -7 -6 -6 -6 -6 -6 -6 -6 --------- Run | Scr Mat Min Mat Sto Gar Rec Fac Gar Fac Was Fac Ext Cet Arc Hub Total 6112 | 100 131 759 385 561 408 540 169 403 80 340 714 691 245 273 313 Wait 611 | . 1 18 9 143 42 150 8 11 8 16 44 125 1 25 10 Move 4648 | 74 130 710 299 365 296 277 148 304 56 288 619 430 180 215 257 Hop . | . . . . . . . . . . . . . . . . Pick Up 73 | 8 . 4 6 4 3 . 1 4 2 6 13 13 3 5 1 Fast Attach 63 | 7 . 2 6 7 5 . 2 6 2 8 4 6 5 2 1 Attach 25 | . . . 3 . . . 1 5 2 1 . 6 . . 7 Detach 5 | . . 1 . . . . . 1 . 1 . . 2 . . Swap 70 | . . 4 8 7 6 . . 18 . 1 8 9 6 2 1 Drop 119 | . . 9 15 9 8 . 1 12 2 19 9 10 16 7 2 Fire 324 | 11 . 11 36 23 30 2 8 40 8 . 10 67 32 14 32 Melee 16 | . . . . . 12 . . 2 . . . . . 2 . Ram 1 | . . . . . . . . . . . . . . 1 . Kick 3 | . . . 3 . . . . . . . . . . . . Crush 11 | . . . . . . . . . . . 7 2 . . 2 Escape Stasis 14 | . . . . . 6 . . . . . . 8 . . . Rewire 126 | . . . . . . 111 . . . . . 15 . . . Trap . | . . . . . . . . . . . . . . . . Miscellaneous 3 | . . . . 3 . . . . . . . . . . . Route ------- -11/Scrapyard -10/Materials (discovered 2 exits: *Min x2) -10/Mines (discovered 2 exits: *Mat x2) -9/Materials (discovered 5 exits: *Mat x2 / Min x2 / *Sto) -9/Storage -9/Garrison (discovered 2 exits: *Rec x2) -9/Recycling -7/Factory (discovered 3 exits: Low x2 / Gar) -7/Garrison (discovered 2 exits: [*Fac x2]) -6/Factory -6/Waste -6/Factory (discovered 5 exits: [*Fac] / Low x2 / *Ext x2) -6/Extension (discovered 2 exits: [*Fac] / *Cet) -6/Cetus (discovered 2 exits: [*Fac] / [*Arc]) -6/Archives -6/Hub_04(d) History --------- Turn | Location | Event 2 | -11/Scrapyard | Discovered new exit (range 16) 137 | -11/Scrapyard | Entered Materials 167 | -10/Materials | Discovered new exit (range 3) 185 | -10/Materials | Identified exit to Mines 294 | -10/Materials | Entered Mines 309 | -10/Mines | Build established: Mutant 312 | -10/Mines | Discovered new exit (range 3) 386 | -10/Mines | Assisted by bots powering up and referring to "LRC-V3" 648 | -10/Mines | Learned 4 Materials zone layouts 682 | -10/Mines | Found the Drone Emporium 688 | -10/Mines | Found Prototype Device 688 | -10/Mines | Identified Sensor Drone Bay 853 | -10/Mines | Learned 8 Materials zone layouts 865 | -10/Mines | Discovered new exit (range 5) 1212 | -10/Mines | Entered Materials 1212 | -9/Materials | Accompanied by 3 allies 1212 | -9/Materials | Evolved 2 slots: Propulsion x1, Utility x1 1213 | -9/Materials | Identified exit to Materials 1213 | -9/Materials | Identified exit to Mines 1213 | -9/Materials | Identified exit to Storage 1719 | -9/Materials | Entered Storage 1855 | -9/Storage | Repaired Imp. Heat Sink 2074 | -9/Storage | Core integrity fell below 50% 2394 | -9/Storage | Assisted by bots powering up and referring to "LRC-V3" 2408 | -9/Storage | Garrison activated, responded to threat 2465 | -9/Storage | Identified exit to Garrison 2470 | -9/Storage | Entered Garrison 2470 | -9/Garrison | Accompanied by 6 allies 2528 | -9/Garrison | Triggered checkpoint 2546 | -9/Garrison | Triggered checkpoint 2592 | -9/Garrison | Discovered new exit (range 22) 2694 | -9/Garrison | Triggered checkpoint 2831 | -9/Garrison | Build established: Scavenger-Mutant 2881 | -9/Garrison | Garrison Relay disabled 2984 | -9/Garrison | Triggered checkpoint 3049 | -9/Garrison | Discovered new exit (range 14) 3081 | -9/Garrison | Installed Relay Interface Framework 3087 | -9/Garrison | Entered Recycling 3087 | -9/Recycling | Accompanied by 3 allies 3089 | -9/Recycling | Spotter reported a threat 3099 | -9/Recycling | Spotter reported a threat 3100 | -9/Recycling | Spotter reported a threat 3162 | -9/Recycling | Spotter reported a threat 3233 | -9/Recycling | Spotter reported a threat 3257 | -9/Recycling | Spotter reported a threat 3365 | -9/Recycling | Spotter reported a threat 3366 | -9/Recycling | Spotter reported a threat 3402 | -9/Recycling | Spotter reported a threat 3417 | -9/Recycling | Core integrity fell below 20% 3424 | -9/Recycling | Spotter reported a threat 3449 | -9/Recycling | Spotter reported a threat 3450 | -9/Recycling | Spotter reported a threat 3494 | -9/Recycling | Spotter reported a threat 3501 | -9/Recycling | Spotter reported a threat 3515 | -9/Recycling | Build established: Commander-Mutant 3519 | -9/Recycling | Spotter reported a threat 3541 | -9/Recycling | Spotter reported a threat 3542 | -9/Recycling | Spotter reported a threat 3547 | -9/Recycling | Spotter reported a threat 3578 | -9/Recycling | Spotter reported a threat 3588 | -9/Recycling | Spotter reported a threat 3622 | -9/Recycling | Discovered new exit (range 15) 3622 | -9/Recycling | Spotter reported a threat 3622 | -9/Recycling | Spotter reported a threat 3622 | -9/Recycling | Spotter reported a threat 3627 | -9/Recycling | Spotter reported a threat 3675 | -9/Recycling | Spotter reported a threat 3675 | -9/Recycling | Spotter reported a threat 3675 | -9/Recycling | Spotter reported a threat 3684 | -9/Recycling | Spotter reported a threat 3728 | -9/Recycling | Spotter reported a threat 3728 | -9/Recycling | Spotter reported a threat 3736 | -9/Recycling | Spotter reported a threat 3771 | -9/Recycling | Spotter reported a threat 3796 | -9/Recycling | Entered Factory 3796 | -7/Factory | Accompanied by 7 allies 3796 | -7/Factory | Evolved 4 slots: Propulsion x1, Utility x3 3878 | -7/Factory | Identified exit to Lower Caves 4054 | -7/Factory | Garrison activated, responded to threat 4063 | -7/Factory | Identified exit to Garrison 4063 | -7/Factory | Entered Garrison 4140 | -7/Garrison | Triggered checkpoint 4161 | -7/Garrison | Garrison Relay disabled 4308 | -7/Garrison | Destroyed 8 combat bots 4368 | -7/Garrison | Triggered checkpoint 4401 | -7/Garrison | Build established: Scavenger-Mutant 4444 | -7/Garrison | Discovered new exit (range 15) 4699 | -7/Garrison | Discovered new exit (range 13) 4737 | -7/Garrison | Expanded RIF knowledge: Signal Jamming 4744 | -7/Garrison | Entered Factory 4744 | -6/Factory | Evolved 2 slots: Utility x2 4863 | -6/Factory | Sucked down chute 4863 | -6/Factory | Entered Waste 4864 | -6/Waste | Joined by Warlord forces that had cleared the area 4986 | -6/Waste | Found Damper Plating 5282 | -6/Waste | Discovered new exit (range 13) 5368 | -6/Waste | Entered Factory 5368 | -6/Factory | Accompanied by 20 allies 5548 | -6/Factory | Repaired Sml. Storage Unit 5770 | -6/Factory | Identified exit to Lower Caves 5770 | -6/Factory | Identified exit to Extension 6076 | -6/Factory | Garrison activated, responded to threat 6337 | -6/Factory | Discovered new exit (range 15) 6418 | -6/Factory | First assault squad dispatched 6471 | -6/Factory | Entered Extension 6471 | -6/Extension | Accompanied by 8 allies 6700 | -6/Extension | Rescued a captive Derelict 6702 | -6/Extension | Rescued a captive Derelict 6903 | -6/Extension | Rescued a captive Derelict 6926 | -6/Extension | Rescued a captive Derelict 6927 | -6/Extension | Rescued a captive Derelict 7032 | -6/Extension | Rescued a captive Derelict 7171 | -6/Extension | First assault squad dispatched 7218 | -6/Extension | Rescued A7 7276 | -6/Extension | Lost 3 parts (1p1n1u) 7342 | -6/Extension | Rescued a captive Derelict 7343 | -6/Extension | Rescued a captive Derelict 7379 | -6/Extension | Discovered new exit (range 10) 7380 | -6/Extension | Discovered new exit (range 6) 7523 | -6/Extension | Entered Cetus 7523 | -6/Cetus | Accompanied by 2 allies (A7) 7528 | -6/Cetus | Acquired a Cetus Manufacturing Module code from A7 7545 | -6/Cetus | Spotted Cetus Guard 7545 | -6/Cetus | Spotted Cetus Guard 7547 | -6/Cetus | Spotted Cetus Guard 7555 | -6/Cetus | Destroyed Cetus Guard 7561 | -6/Cetus | Allies destroyed Cetus Guard 7561 | -6/Cetus | Spotted Cetus Guard 7570 | -6/Cetus | Destroyed Cetus Guard 7576 | -6/Cetus | Allies destroyed Cetus Guard 7682 | -6/Cetus | Discovered new exit (range 15) 7721 | -6/Cetus | Escorted A7 to Cetus Mainframe 7806 | -6/Cetus | Spotted Cetus Guard 7806 | -6/Cetus | Spotted Cetus Guard 7813 | -6/Cetus | Destroyed Cetus Guard 7814 | -6/Cetus | Spotted Cetus Guard 7820 | -6/Cetus | Allies destroyed Cetus Guard 7820 | -6/Cetus | Spotted Cetus Guard 7824 | -6/Cetus | Destroyed Cetus Guard 7839 | -6/Cetus | Allies destroyed Cetus Guard 7845 | -6/Cetus | Destroyed 7 combat bots 7847 | -6/Cetus | Discovered new exit (range 15) 7855 | -6/Cetus | Met Revision 17 7932 | -6/Cetus | Entered Archives 7932 | -6/Archives | Accompanied by 1 ally (A7) 7937 | -6/Archives | Received a hacking code to weaken MAIN.C 9572 | -6/Archives | Discovered new exit (range 16) 9607 | -6/Archives | Entered Hub_04(d) 9607 | -6/Hub_04(d) | Accompanied by 1 ally 9667 | -6/Hub_04(d) | Garrison activated, responded to threat 9676 | -6/Hub_04(d) | Core integrity fell below 50% 9815 | -6/Hub_04(d) | Network Hub disabled 9909 | -6/Hub_04(d) | Spotted Lightning 9921 | -6/Hub_04(d) | Spotted Lightning 9922 | -6/Hub_04(d) | Spotted Lightning 9937 | -6/Hub_04(d) | System corruption reached 10% 10013 | -6/Hub_04(d) | Spotted Lightning 10013 | -6/Hub_04(d) | Spotted Lightning 10024 | -6/Hub_04(d) | Spotted Lightning 10025 | -6/Hub_04(d) | System corruption reached 30% 10045 | -6/Hub_04(d) | Core integrity fell below 20% 10068 | -6/Hub_04(d) | Lost 11 parts (1p3n5u2w) 10068 | -6/Hub_04(d) | Destroyed by Lightning with EMDS Last Messages --------------- 10034_ System corrupted: Energy discharge (-108). 10034_ Quantum Reactor destroyed. 10034_ Penetrated by EMDS Slug. 10034_ EMDS Slug penetrates Wall. 10034_ Centrium Heavy Treads destroyed. 10034_ EMDS Slug penetrates Wall. 10035_ Dropped Lrg. Storage Unit. 10037_ Acquired Lrg. Storage Unit. 10037_ Imp. System Restoration Module destroyed. 10038_ Dropped Centrium Medium Armor Plating. 10043_ EMDS Slug penetrates Wall. 10044_ Penetrated by EMDS Slug. 10045_ >> Machine Analyzer network decryption results: 10045_ Terminal x1 10047_ O-24 Administrator: "IFF HANDSHAKE FAILED. SECURING TERMINAL." 10049_ ALERT: Hostiles spotted, dispatching reinforcements to Terminal H006. 10050_ FDAFI/LDDXGT:B L6:,I8IDQ G9%Y1DYPLX9XXWZ 10050_ >> Machine Analyzer network decryption results: 10050_ Terminal x1 10068_ EMDS Slug penetrates Wall. Map ----- +----------------------------------------------------+ | | | | | | | | | ??????????############################???????????? | | ??????????#= # """T""" #???????????? | | ??????????# *# """ """ """ #???????????? | | ??????????#? # #???????????? | | ??????????# " " " " " / ! ]#???????????? | | ??????????# " " " " " ####/##########???????????? | | ??????????# " " " " " #??# #???????T"???????????? | | ??????????# #??# #????????"???????????? | | ??????????# " " " " " #??# #????????????????????? | | ??????????# " " " " " #??# #????????????????????? | | ########??# " " " " " #??# ########?????????????? | | ?# #??# # #?????????????? | | ?# #??# # """ #?????????????? | | " ?#######/######??# # #?????????????? | | ? """ ###### ######## # """ #?????????????? | | ??"""" + / #?????????????? | | ??""""" + ] #####+#### #?????????????? | | ??"""" ######!/ # #?############?????????? | | ??""" ?????##] ## """" #???# #?????????? | | " ???????# ## """" #???# #???"?"""?? | | ???????# ## """" ##### #???"?"T"?? | | ??????### ## """"@/ + #???"?"?"?? | | #######????###T# ## ##### #?????????? | | ???????????# ##;#####???# #???????"?? | | ???????????# #?????# #???????"?? | | ???????????# #?????? #???????"?? | | ???????????# #???????? ???????????? | | ???????????# %###########+#########+#### | | ???????????+ % | | ???????????########## | | ??################### | | ??# # #[% ########+##+#######+#+#### | | ??# """ # """ # = #?????# # | | ??# # # %###???# # | | ??# """ / == # T#???# + "T" """ | | ??# " =! #% ""#???# """" # """ | | ??# " " " + %###???#! """" ########## | | ??# "G"%# # =#?????# """" #????????? | | ?## =" # """ ! # #?????# """" #?????"?"? | | ?## = [ # # #?????# #?????"?"? | | ?######/##### #######%% #?????##+########?????"?"? | | ????# % ########## ????????????????????????? | | ????# % ! #????????????????????"?"? | | ???## % ^ #????????????????????"?"? | | ???## #????????????????????"?"? | | ????# ########## #???????????????????????? | +----------------------------------------------------+ Best States ------------- Heat Dissipation 76 Energy Generation 25 Energy Capacity 350 Matter Stores 300 Matter Capacity 300 Sight Range 16 Terrain Scan Density 10 Armor Coverage 1600 Resistance: TH 10 Resistance: EM 90 Evasion (%) 55 Targeting Accuracy 6 Recoil Reduction 4 Offensive Hacking 12 Defensive Hacking 10 Relay Coupler Types 2 Relay Coupler Value 30 Item Schematics ----------------- Shock Bomb Launcher | -9/Recycling | Hacked Hvy. EM Pulse Gun | -9/Recycling | Hacked Missile Launcher | -9/Recycling | Hacked Robot Schematics ------------------ None Fabricated ------------ Nothing Alien Tech Used ----------------- None Achievements -------------- Generalissimo Challenges ------------ None Game ------ Seed PortableAdvancedRipper Manual? 0 Play Time 01:54:37 Cumulative 160.4 hours Start 2022.04.17 @ 16:46:54 End 2022.04.17 @ 19:46:30 Sessions 1 Manual Loads 0 Difficulty Rogue Special Mode None Game No. 121 Rogue 99 Adventurer 6 Explorer 16 Win Type - Total 10 Types 6/0/1/1/0/0/1/1/0 Lore% 85 Gallery% 85 Achievement% 64 Wizard Run 0 Options --------- ASCII 0 Keyboard 0 Movement Numpad Keybinds 0 Fullscreen 1 Font 12/Fuzzy Map View 83x54 Tactical HUD 1 Map Filters NONE Filters NONE Steam 1 RUN: 6819191c-ac8c-433b-8e8e-5956458b01be